bitfinex/quotes_BTCUSD_20240718
["timestamp","ask_amount","ask_price","bid_price","bid_amount"]
[1721304870482,0.00215751,64945.0,64944.0,1.37466266]
[1721304871618,0.00215751,64945.0,64944.0,1.45746266]
[1721304872056,0.00215751,64945.0,64944.0,1.44346266]
[1721304873438,0.00215751,64945.0,64944.0,1.45746266]
[1721304873439,0.00315751,64945.0,64944.0,1.45746266]
[1721304875247,0.00315751,64945.0,64944.0,1.58530936]
[1721304875940,0.00315751,64945.0,64944.0,0.91232392]
[1721304876188,0.00315751,64945.0,64944.0,0.19640992]
[1721304876488,0.48096026,64945.0,64944.0,0.04243192]
[1721304876690,0.53435394,64945.0,64944.0,0.04243192]
[1721304876910,0.53435394,64945.0,64944.0,0.02843192]
[1721304876911,0.50290979,64945.0,64944.0,0.02843192]
[1721304877380,0.50390979,64945.0,64944.0,0.024]
[1721304877815,0.50390979,64945.0,64944.0,0.014]
[1721304877816,0.50290979,64945.0,64944.0,0.014]
[1721304878032,0.19495779,64945.0,64944.0,0.014]
[1721304878251,0.26420633,64945.0,64944.0,0.014]
[1721304878486,0.26420633,64945.0,64944.0,0.02843691]
[1721304878487,0.22538205,64945.0,64944.0,0.02843691]
[1721304879455,0.22538205,64945.0,64944.0,0.01443691]
[1721304879456,0.2243689,64945.0,64944.0,0.01443691]
[1721304879717,0.5323209,64945.0,64944.0,0.01443691]
[1721304879933,0.5323209,64945.0,64939.0,0.1]
[1721304879934,0.153981,64943.0,64939.0,0.1]
[1721304880160,0.450569,64942.0,64938.0,0.000924]
[1721304880390,0.20014209,64940.0,64938.0,0.000924]
[1721304880645,0.06923539,64940.0,64938.0,0.000924]
[1721304881319,0.218986,64941.0,64939.0,0.01445428]
[1721304881320,0.28822139,64941.0,64939.0,0.01445428]
[1721304881611,0.06923539,64940.0,64939.0,0.01445428]
[1721304882277,0.22322339,64940.0,64939.0,0.01445428]
[1721304882497,0.22317955,64940.0,64939.0,0.01445428]
[1721304882726,0.158988,64940.0,64939.0,0.01445428]
[1721304882950,0.158988,64940.0,64938.0,0.000924]
[1721304883169,0.04611612,64939.0,64938.0,0.000924]
[1721304883430,0.163988,64940.0,64938.0,0.000924]
[1721304883431,0.20510412,64940.0,64938.0,0.000924]
[1721304883641,0.21009275,64940.0,64938.0,0.000924]
[1721304884087,0.20009275,64940.0,64938.0,0.000924]
[1721304884552,0.153988,64940.0,64938.0,0.000924]
[1721304885723,0.158988,64940.0,64938.0,0.000924]
[1721304886621,0.153988,64940.0,64938.0,0.000924]
[1721304889743,0.005,64940.0,64938.0,0.000924]
[1721304891588,0.005,64940.0,64938.0,0.154916]
[1721304892752,0.153983,64942.0,64938.0,0.154916]
[1721304892976,0.005,64940.0,64938.0,0.154916]
[1721304893640,0.005,64940.0,64939.0,0.15399]
[1721304893866,0.153981,64943.0,64939.0,0.15399]
[1721304894094,0.007,64942.0,64939.0,0.15399]
[1721304895453,0.153981,64943.0,64939.0,0.15399]
[1721304895675,0.005,64940.0,64939.0,0.15399]
[1721304896329,0.005,64940.0,64939.0,0.16844846]
[1721304896544,0.153981,64943.0,64939.0,0.16844846]
[1721304896545,0.003,64942.0,64939.0,0.16844846]
[1721304897038,0.01,64942.0,64939.0,0.16944846]
[1721304897481,0.003,64942.0,64939.0,0.16844846]
[1721304898146,0.153981,64943.0,64939.0,0.16844846]
[1721304898930,0.29236551,64945.0,64941.0,0.153985]
[1721304899166,0.003,64942.0,64941.0,0.153985]
[1721304899648,0.156983,64942.0,64939.0,0.001]
[1721304899888,0.153983,64942.0,64939.0,0.001]
[1721304900114,0.153983,64942.0,64938.0,0.154916]
[1721304900637,0.007,64942.0,64941.0,0.001]
[1721304900908,0.007,64942.0,64941.0,1.078898]
[1721304901145,0.007,64942.0,64941.0,1.231598]
[1721304901633,0.007,64942.0,64941.0,1.296498]
[1721304902091,0.007,64942.0,64941.0,1.45087974]
[1721304902284,0.01,64942.0,64941.0,1.45087974]
[1721304902779,0.003,64942.0,64941.0,1.88085074]
[1721304903010,0.007,64942.0,64941.0,1.88085074]
[1721304903248,0.007,64942.0,64941.0,1.57287974]
[1721304903483,0.008,64942.0,64941.0,1.58287974]
[1721304903949,0.001,64942.0,64941.0,1.89085074]
[1721304904421,0.002,64942.0,64941.0,1.89685074]
[1721304909013,0.002,64942.0,64941.0,1.51887974]
[1721304909221,0.002,64942.0,64941.0,1.56587974]
[1721304909446,0.002,64942.0,64941.0,0.880927]
[1721304909711,0.002,64942.0,64941.0,0.016]
[1721304909931,0.307783,64942.0,64941.0,0.016]
[1721304910153,0.54575,64942.0,64941.0,0.016]
[1721304910380,0.61575,64942.0,64941.0,0.016]
[1721304910604,0.61575,64942.0,64941.0,0.01]
[1721304910605,0.236783,64942.0,64941.0,0.01]
[1721304911116,0.243783,64942.0,64941.0,0.011]
[1721304911333,0.242783,64942.0,64938.0,0.154916]
[1721304911555,0.21969,64939.0,64938.0,0.000924]
[1721304912673,0.835652,64939.0,64938.0,0.000924]
[1721304913155,0.90477575,64939.0,64938.0,0.000924]
[1721304913383,1.39287079,64939.0,64938.0,0.000924]
[1721304913612,1.43204628,64939.0,64938.0,0.000924]
[1721304913837,1.57703336,64939.0,64938.0,0.000924]
[1721304914294,1.58003336,64939.0,64938.0,0.001924]
[1721304914717,1.63003336,64939.0,64938.0,0.001924]
[1721304915236,1.64403336,64939.0,64938.0,0.002924]
[1721304915458,1.64403336,64939.0,64938.0,0.001924]
[1721304915683,1.69223358,64939.0,64938.0,0.000924]
[1721304915911,1.70623358,64939.0,64938.0,0.001924]
[1721304916379,1.59103336,64939.0,64938.0,0.001924]
[1721304916600,1.70622503,64939.0,64938.0,0.001924]
[1721304916822,1.59103336,64939.0,64938.0,0.001924]
[1721304917044,1.57703336,64939.0,64938.0,0.000924]
[1721304917275,1.60403336,64939.0,64938.0,0.001924]
[1721304917531,1.59003336,64939.0,64938.0,0.001924]
[1721304917985,1.60403336,64939.0,64938.0,0.001924]
[1721304918461,1.68318806,64939.0,64938.0,0.000924]
[1721304918671,1.53820098,64939.0,64938.0,0.000924]
[1721304918921,1.45804628,64939.0,64938.0,0.001924]
[1721304919176,1.5499649,64939.0,64938.0,0.001924]
[1721304919427,1.61216282,64939.0,64938.0,0.001924]
[1721304919724,1.91644531,64939.0,64938.0,0.001924]
[1721304919943,1.66212687,64939.0,64938.0,0.001924]
[1721304922269,2.30648482,64939.0,64938.0,0.001924]
[1721304923009,1.84415425,64939.0,64938.0,0.000924]
[1721304923233,1.60705425,64939.0,64938.0,0.000924]
[1721304923471,1.44475425,64939.0,64938.0,0.001924]
[1721304924412,1.44475425,64939.0,64938.0,0.002924]
[1721304924413,1.59910382,64939.0,64938.0,0.002924]
[1721304924642,1.27448316,64939.0,64938.0,0.002924]
[1721304924864,0.96650216,64939.0,64938.0,0.002924]
[1721304925097,1.30248316,64939.0,64938.0,0.004924]
[1721304925354,1.28891147,64939.0,64938.0,0.002924]
[1721304925792,1.12068331,64939.0,64938.0,0.002924]
[1721304926247,1.17375082,64939.0,64938.0,0.002924]
[1721304926522,1.09268331,64939.0,64938.0,0.000924]
[1721304926970,1.10668331,64939.0,64938.0,0.001924]
[1721304927185,1.07868331,64939.0,64938.0,0.000924]
[1721304927455,1.1707963,64939.0,64938.0,0.000924]
[1721304927690,1.1847963,64939.0,64938.0,0.001924]
[1721304928388,1.18479584,64939.0,64938.0,0.00183245]
[1721304928821,1.18479123,64939.0,64938.0,0.00183245]
[1721304929261,1.18479201,64939.0,64938.0,0.00183245]
[1721304930318,0.72246144,64939.0,64938.0,0.00183245]
[1721304930492,0.72246144,64939.0,64938.0,0.14243245]
[1721304930493,0.08307744,64939.0,64938.0,0.14243245]
[1721304930743,0.23706744,64939.0,64938.0,0.14243245]
[1721304930985,0.23706744,64939.0,64938.0,0.15692798]
[1721304931223,0.16799,64939.0,64938.0,0.15692798]
[1721304931700,0.06004708,64939.0,64938.0,0.15692798]
[1721304931957,0.014,64939.0,64938.0,0.15692798]
[1721304932465,0.23630627,64939.0,64938.0,0.15692798]
[1721304932699,0.16799,64939.0,64938.0,0.15692798]
[1721304933137,0.16799,64939.0,64938.0,0.14243245]
[1721304933369,0.16799,64939.0,64938.0,0.00183245]
[1721304933594,0.475971,64939.0,64938.0,0.00183245]
[1721304933852,0.57508557,64939.0,64938.0,0.00183245]
[1721304934089,0.57508557,64939.0,64938.0,0.01632303]
[1721304934319,0.57508557,64939.0,64938.0,0.00183245]
[1721304934781,0.57508557,64939.0,64938.0,0.01632303]
[1721304935006,0.57508557,64939.0,64938.0,0.00183245]
[1721304935007,0.014,64939.0,64938.0,0.00183245]
[1721304935246,0.014,64939.0,64938.0,0.01632303]
[1721304935501,0.014,64939.0,64938.0,0.91469745]
[1721304935731,0.014,64939.0,64938.0,1.2371734]
[1721304936706,0.008,64939.0,64938.0,1.2361734]
[1721304937157,0.00835,64947.0,64944.0,0.606435]
[1721304937610,0.00835,64947.0,64944.0,0.62091331]
[1721304938601,0.00835,64947.0,64944.0,0.92887031]
[1721304939278,0.00298751,64945.0,64944.0,0.93087031]
[1721304939771,0.00298751,64945.0,64944.0,0.93387031]
[1721304939991,0.00298751,64945.0,64944.0,1.24182731]
[1721304943279,0.00298751,64945.0,64944.0,1.39620905]
[1721304944183,0.00298751,64945.0,64944.0,1.80416605]
[1721304944407,0.00298751,64945.0,64944.0,1.82716605]
[1721304945326,0.00298751,64945.0,64944.0,1.82516605]
[1721304945625,0.00198751,64945.0,64944.0,1.82216605]
[1721304945846,0.00298751,64945.0,64944.0,1.82416605]
[1721304946566,0.00398751,64945.0,64944.0,1.83116605]
[1721304948902,0.00398751,64945.0,64944.0,1.52320905]
[1721304949130,0.00398751,64945.0,64944.0,1.34582731]
[1721304949450,0.00398751,64945.0,64944.0,0.93787031]
[1721304949878,0.00398751,64945.0,64944.0,0.10617831]
[1721304950133,0.00398751,64945.0,64944.0,0.02347831]
[1721304950394,0.19082506,64945.0,64944.0,0.02347831]
[1721304950616,0.00398751,64945.0,64944.0,0.79337031]
[1721304950846,0.00398751,64945.0,64944.0,0.162978]
[1721304951064,0.00398751,64945.0,64944.0,0.470935]
[1721304951298,0.00298751,64945.0,64944.0,0.47838533]
[1721304951743,0.00298751,64945.0,64944.0,0.47638533]
[1721304951744,0.00598751,64945.0,64944.0,0.47638533]
[1721304952205,0.00698751,64945.0,64944.0,0.48138533]
[1721304952463,0.00798751,64945.0,64944.0,0.48138533]
[1721304952672,0.00698751,64945.0,64944.0,0.47638533]
[1721304953122,0.00698751,64945.0,64944.0,0.48038533]
[1721304955694,0.00698751,64945.0,64944.0,0.54178533]
[1721304956417,0.00698751,64945.0,64944.0,0.84974233]
[1721304959159,0.00598751,64945.0,64944.0,1.15769933]
[1721304961184,0.00563812,64945.0,64944.0,1.15769933]
[1721304961424,0.00063812,64945.0,64944.0,1.15769933]
[1721304961885,0.00063812,64945.0,64944.0,1.49308107]
[1721304962166,0.00063812,64945.0,64944.0,1.80103807]
[1721304962384,0.00063812,64945.0,64944.0,1.82403807]
[1721304962607,0.00835,64947.0,64946.0,1.385766]
[1721304962608,0.00589386,64947.0,64946.0,1.385766]
[1721304962834,0.00589386,64947.0,64946.0,1.80794774]
[1721304963052,0.00589386,64947.0,64946.0,1.82241234]
[1721304964021,0.00308113,64947.0,64946.0,1.82241234]
[1721304964471,0.00308113,64947.0,64946.0,2.2581957]
[1721304964714,0.00308113,64947.0,64946.0,2.13036034]
[1721304964949,0.00308113,64947.0,64946.0,1.95024404]
[1721304965186,0.00308113,64947.0,64946.0,1.82341234]
[1721304965403,0.00308113,64947.0,64946.0,1.951244]
[1721304965861,0.00508113,64947.0,64946.0,1.950244]
[1721304966093,0.00408113,64947.0,64946.0,1.961244]
[1721304966560,0.00508113,64947.0,64946.0,1.970244]
[1721304967000,0.00508113,64947.0,64946.0,1.53446434]
[1721304967241,0.00508113,64947.0,64946.0,1.51146434]
[1721304968370,0.00508113,64947.0,64946.0,1.50989813]
[1721304974027,0.00508113,64947.0,64946.0,0.18687239]
[1721304974482,0.00508113,64947.0,64946.0,0.49482039]
[1721304977438,0.00508113,64947.0,64946.0,0.80276839]
[1721304980675,0.00508113,64947.0,64946.0,1.71144613]
[1721304982486,0.00508113,64947.0,64946.0,1.88654613]
[1721304983185,0.00508113,64947.0,64946.0,1.71144613]
[1721304984313,0.00508113,64947.0,64946.0,1.71235913]
[1721304985692,0.00508113,64947.0,64946.0,1.81235913]
[1721304987059,0.00508113,64947.0,64946.0,1.83535913]
[1721304987282,0.00508113,64947.0,64946.0,1.96319681]
[1721304987600,0.00508113,64947.0,64946.0,1.83535913]
[1721304987739,0.00508113,64947.0,64946.0,1.96319627]
[1721304988186,0.00508113,64947.0,64946.0,1.83535913]
[1721304989841,0.00508113,64947.0,64946.0,1.84370913]
[1721304990058,0.00508113,64947.0,64946.0,1.51276113]
[1721304997072,0.00508113,64947.0,64946.0,1.66360119]
[1721304997320,0.00508113,64947.0,64946.0,1.53576113]
[1721304997552,0.00508113,64947.0,64946.0,1.66360093]
[1721304997780,0.00508113,64947.0,64946.0,1.53576113]
[1721305005460,0.00508113,64947.0,64946.0,0.1437276]
[1721305005668,0.00508113,64947.0,64946.0,0.4972996]
[1721305005898,0.00508113,64947.0,64946.0,0.5972996]
[1721305006984,0.00508113,64947.0,64946.0,0.9052476]
[1721305007657,0.00308113,64947.0,64946.0,0.8852476]
[1721305007873,0.00308113,64947.0,64946.0,0.8892476]
[1721305008144,0.00308113,64947.0,64946.0,0.8902476]
[1721305008363,0.00308113,64947.0,64946.0,0.8892476]
[1721305008613,0.00308113,64947.0,64946.0,0.8872476]
[1721305008850,0.00308113,64947.0,64946.0,0.8932476]
[1721305008851,0.00408113,64947.0,64946.0,0.8932476]
[1721305009321,0.00408113,64947.0,64946.0,0.5852996]
[1721305009573,0.14678113,64947.0,64946.0,0.5852996]
[1721305010041,0.00408113,64947.0,64946.0,0.5852996]
[1721305014947,0.00408113,64947.0,64946.0,0.9584476]
[1721305016306,0.00408113,64947.0,64946.0,1.0407476]
[1721305020792,0.00408113,64947.0,64946.0,0.9755476]
[1721305021012,0.00408113,64947.0,64946.0,0.8932476]
[1721305036282,0.00408113,64947.0,64946.0,0.5852996]
[1721305036511,0.00408113,64947.0,64946.0,0.2773516]
[1721305038756,0.00408113,64947.0,64946.0,0.8932476]
[1721305040404,0.00408113,64947.0,64946.0,0.5852996]
[1721305040623,0.00408113,64947.0,64946.0,0.8932476]
[1721305046228,0.00408113,64947.0,64946.0,0.0233776]
[1721305046229,0.45592413,64947.0,64946.0,0.0233776]
[1721305046456,1.50969528,64947.0,64946.0,0.0233776]
[1721305046688,1.60279798,64947.0,64946.0,0.0233776]
[1721305046904,1.60279798,64947.0,64946.0,0.008913]
[1721305047379,1.61756353,64947.0,64946.0,0.000913]
[1721305047605,1.75614839,64947.0,64946.0,0.000913]
[1721305048260,1.75614839,64947.0,64946.0,0.001913]
[1721305048261,1.62356353,64947.0,64946.0,0.001913]
[1721305048919,1.62556353,64947.0,64946.0,0.001913]
[1721305049173,1.618492,64947.0,64946.0,0.000913]
[1721305049391,1.616492,64947.0,64946.0,0.000913]
[1721305049612,1.63029228,64947.0,64946.0,0.001913]
[1721305049839,1.64229228,64947.0,64946.0,0.002913]
[1721305050277,1.69229228,64947.0,64946.0,0.002913]
[1721305051857,2.00023528,64947.0,64946.0,0.002913]
[1721305052093,2.40228633,64947.0,64946.0,0.002913]
[1721305052350,2.57152923,64947.0,64946.0,0.002913]
[1721305052568,2.61407545,64947.0,64946.0,0.002913]
[1721305052810,2.61407545,64947.0,64938.0,0.00083245]
[1721305052811,1.598214,64939.0,64938.0,0.00083245]
[1721305053036,2.23139363,64939.0,64938.0,0.00083245]
[1721305053259,1.92322749,64939.0,64938.0,0.00083245]
[1721305053484,1.7763317,64939.0,64938.0,0.00083245]
[1721305053706,1.7263317,64939.0,64938.0,0.00083245]
[1721305053938,1.8515317,64939.0,64938.0,0.00083245]
[1721305054221,1.8615317,64939.0,64938.0,0.00183245]
[1721305054452,1.8755317,64939.0,64938.0,0.00283245]
[1721305054669,2.02988127,64939.0,64938.0,0.00283245]
[1721305055130,1.96237001,64939.0,64938.0,0.00283245]
[1721305055341,2.03027885,64939.0,64938.0,0.00283245]
[1721305057799,2.19257885,64939.0,64938.0,0.00283245]
[1721305058287,2.12467001,64939.0,64938.0,0.00283245]
[1721305058502,2.27962919,64939.0,64938.0,0.00283245]
[1721305058735,2.19216191,64939.0,64938.0,0.00283245]
[1721305058965,2.18216251,64939.0,64938.0,0.00183245]
[1721305059182,2.18216251,64939.0,64938.0,0.00083245]
[1721305059403,2.19616251,64939.0,64938.0,0.00083245]
[1721305061266,2.31115167,64939.0,64938.0,0.00083245]
[1721305061703,2.19616251,64939.0,64938.0,0.00083245]
[1721305062592,2.50414351,64939.0,64938.0,0.00083245]
[1721305063637,2.61908899,64939.0,64938.0,0.00083245]
[1721305064112,1.91763664,64939.0,64938.0,0.00083245]
[1721305064374,1.82846426,64939.0,64938.0,0.00083245]
[1721305064601,1.87846426,64939.0,64938.0,0.00083245]
[1721305064824,1.80673398,64939.0,64938.0,0.00083245]
[1721305065049,1.85673398,64939.0,64938.0,0.00083245]
[1721305065287,2.01108355,64939.0,64938.0,0.00083245]
[1721305066429,1.96511848,64939.0,64938.0,0.00083245]
[1721305067979,1.964759,64939.0,64938.0,0.00083245]
[1721305068245,1.89637001,64939.0,64938.0,0.00083245]
[1721305068472,1.96475917,64939.0,64938.0,0.00083245]
[1721305068928,1.96482967,64939.0,64938.0,0.00083245]
[1721305070786,1.91482967,64939.0,64938.0,0.00083245]
[1721305071007,1.91492105,64939.0,64938.0,0.00083245]
[1721305071898,1.96492105,64939.0,64938.0,0.00083245]
[1721305072123,1.91492105,64939.0,64938.0,0.00083245]
[1721305073971,1.96492105,64939.0,64938.0,0.00083245]
[1721305074208,1.96553595,64939.0,64938.0,0.00083245]
[1721305076087,1.89033595,64939.0,64938.0,0.00083245]
[1721305076306,1.88193595,64939.0,64938.0,0.00083245]
[1721305077467,1.83196231,64939.0,64938.0,0.00083245]
[1721305077932,1.83198308,64939.0,64938.0,0.00083245]
[1721305078386,1.76277001,64939.0,64938.0,0.00083245]
[1721305078614,1.83198307,64939.0,64938.0,0.00083245]
[1721305079507,1.83206334,64939.0,64938.0,0.00083245]
[1721305079975,1.87803982,64939.0,64938.0,0.00083245]
[1721305080190,1.98147245,64939.0,64938.0,0.00083245]
[1721305080427,2.03147245,64939.0,64938.0,0.00083245]
[1721305080651,1.81277001,64939.0,64938.0,0.00083245]
[1721305080868,1.98558227,64939.0,64938.0,0.00083245]
[1721305081099,2.28908227,64939.0,64938.0,0.00083245]
[1721305081544,2.35805419,64939.0,64938.0,0.00083245]
[1721305081774,2.68904412,64939.0,64938.0,0.00083245]
[1721305082006,0.1124,64921.0,64915.0,0.002794]
[1721305082235,0.462148,64914.0,64913.0,1.144613]
[1721305082455,0.8797097,64914.0,64913.0,1.144613]
[1721305082921,1.1878087,64914.0,64913.0,1.144613]
[1721305083143,1.18804722,64914.0,64913.0,1.078313]
[1721305083372,1.47320983,64914.0,64913.0,1.078313]
[1721305083641,1.47520983,64914.0,64913.0,1.078313]
[1721305084101,1.34442896,64914.0,64913.0,1.000913]
[1721305084334,1.35159302,64914.0,64913.0,1.000913]
[1721305084550,1.34259302,64914.0,64913.0,1.000913]
[1721305085055,1.34759302,64914.0,64913.0,1.000913]
[1721305085981,1.35659302,64914.0,64913.0,1.000913]
[1721305086201,1.49722877,64914.0,64913.0,1.000913]
[1721305086421,1.48822877,64914.0,64913.0,1.000913]
[1721305086663,2.39870974,64914.0,64913.0,1.000913]
[1721305086885,2.81497305,64914.0,64913.0,1.000913]
[1721305087107,2.74596552,64914.0,64913.0,1.000913]
[1721305087336,2.74598209,64914.0,64913.0,1.000913]
[1721305087568,2.73598209,64914.0,64913.0,1.000913]
[1721305087788,2.74998209,64914.0,64913.0,1.000913]
[1721305088057,2.76398209,64914.0,64913.0,1.000913]
[1721305088287,2.85595795,64914.0,64913.0,1.000913]
[1721305088510,2.74328378,64914.0,64913.0,1.000913]
[1721305088976,2.75728378,64914.0,64913.0,1.000913]
[1721305089203,2.74328378,64914.0,64913.0,1.000913]
[1721305089430,2.72280256,64914.0,64913.0,1.000913]
[1721305089937,2.70880256,64914.0,64913.0,1.000913]
[1721305090157,2.72280256,64914.0,64913.0,1.000913]
[1721305091784,2.72280256,64914.0,64913.0,0.846863]
[1721305091785,3.30265271,64914.0,64913.0,0.846863]
[1721305092026,3.18762652,64914.0,64913.0,0.846863]
[1721305092269,3.18762652,64914.0,64913.0,0.73420945]
[1721305092484,3.1872794,64914.0,64913.0,0.70339945]
[1721305092741,3.1872794,64914.0,64913.0,0.692813]
[1721305092950,3.20356846,64914.0,64913.0,0.692813]
[1721305093457,3.21756846,64914.0,64913.0,0.692813]
[1721305093947,3.23156846,64914.0,64913.0,0.692813]
[1721305094183,3.1872794,64914.0,64913.0,0.692813]
[1721305094405,3.31623449,64914.0,64913.0,0.692813]
[1721305094846,3.30223449,64914.0,64913.0,0.692813]
[1721305095285,3.31623449,64914.0,64913.0,0.692813]
[1721305095509,3.14494612,64914.0,64913.0,0.692813]
[1721305095771,3.31730707,64914.0,64913.0,0.692813]
[1721305095981,3.24818581,64914.0,64913.0,0.692813]
[1721305096239,3.2023175,64914.0,64913.0,0.692813]
[1721305097358,3.19100901,64914.0,64913.0,0.600383]
[1721305097604,3.20221443,64914.0,64913.0,0.600383]
[1721305097842,3.20221443,64914.0,64913.0,0.538763]
[1721305098740,3.20099039,64914.0,64913.0,0.538763]
[1721305099012,3.29290572,64914.0,64913.0,0.538763]
[1721305099442,3.20099039,64914.0,64913.0,0.538763]
[1721305099643,3.20099039,64914.0,64913.0,0.446333]
[1721305099901,3.20099039,64914.0,64913.0,0.384713]
[1721305100159,3.31586768,64914.0,64913.0,0.384713]
[1721305100380,1.128647,64896.0,64895.0,0.0832]
[1721305100607,1.64203654,64896.0,64895.0,0.0832]
[1721305100831,1.95022154,64896.0,64895.0,0.0832]
[1721305101329,2.11252154,64896.0,64895.0,0.0832]
[1721305101581,2.11252154,64896.0,64891.0,0.000913]
[1721305101582,0.366402,64892.0,64891.0,0.000913]
[1721305101827,1.31689333,64892.0,64891.0,0.000913]
[1721305102045,2.00205476,64892.0,64891.0,0.000913]
[1721305102499,2.37642031,64892.0,64891.0,0.000913]
[1721305102767,2.42070937,64892.0,64891.0,0.000913]
[1721305103251,2.43470937,64892.0,64891.0,0.000913]
[1721305104203,2.34725876,64892.0,64891.0,0.000913]
[1721305104901,2.36125876,64892.0,64891.0,0.000913]
[1721305105343,2.36065643,64892.0,64891.0,0.000913]
[1721305105589,2.34665643,64892.0,64891.0,0.000913]
[1721305105837,2.36065643,64892.0,64891.0,0.000913]
[1721305106079,2.05245243,64892.0,64891.0,0.000913]
[1721305106326,2.06645243,64892.0,64891.0,0.000913]
[1721305106633,2.03845243,64892.0,64891.0,0.000913]
[1721305107067,2.05245243,64892.0,64891.0,0.000913]
[1721305108012,2.05288152,64892.0,64891.0,0.000913]
[1721305111313,2.05306145,64892.0,64891.0,0.000913]
[1721305112448,2.10063247,64892.0,64891.0,0.000913]
[1721305113126,2.20048376,64892.0,64891.0,0.000913]
[1721305113353,2.13028376,64892.0,64891.0,0.000913]
[1721305113613,1.79907976,64892.0,64891.0,0.140713]
[1721305113859,1.86927976,64892.0,64891.0,0.140713]
[1721305114075,1.80066835,64892.0,64891.0,0.140713]
[1721305114272,2.1783417,64892.0,64891.0,0.140713]
[1721305114544,1.8701377,64892.0,64891.0,0.140713]
[1721305114787,1.66036081,64892.0,64891.0,0.140713]
[1721305115028,1.73056081,64892.0,64891.0,0.140713]
[1721305115586,1.44806081,64892.0,64891.0,0.140713]
[1721305115831,1.03985681,64892.0,64891.0,0.140713]
[1721305116042,1.48988559,64892.0,64891.0,0.140713]
[1721305116515,1.47588559,64892.0,64891.0,0.140713]
[1721305116765,1.16768159,64892.0,64891.0,0.140713]
[1721305116986,1.16418587,64892.0,64891.0,0.140713]
[1721305117252,1.17110151,64892.0,64891.0,0.140713]
[1721305117502,1.1848342,64892.0,64891.0,0.140713]
[1721305117975,0.42660142,64892.0,64891.0,0.140713]
[1721305118203,0.04891564,64892.0,64891.0,0.140713]
[1721305118441,0.028,64892.0,64891.0,0.603026]
[1721305118734,0.028,64892.0,64891.0,0.61316244]
[1721305118974,0.014,64892.0,64891.0,0.61316244]
[1721305119873,0.014,64892.0,64891.0,0.30495344]
[1721305120127,0.154088,64898.0,64893.0,0.0825]
[1721305120343,0.02641952,64897.0,64894.0,0.0623]
[1721305120606,0.02641952,64896.0,64895.0,0.141]
[1721305121092,0.18066922,64897.0,64896.0,0.1439]
[1721305121335,0.18059416,64897.0,64896.0,0.1439]
[1721305121554,0.18059416,64897.0,64896.0,0.15401928]
[1721305123448,0.15409,64897.0,64896.0,0.15401928]
[1721305124290,0.18123348,64897.0,64896.0,0.15401928]
[1721305125786,0.18323348,64897.0,64896.0,0.15401928]
[1721305127137,0.60218733,64897.0,64896.0,0.15401928]
[1721305127352,0.60218733,64897.0,64896.0,0.1439]
[1721305127795,0.60218733,64897.0,64896.0,0.15401928]
[1721305128453,0.6723188,64897.0,64896.0,0.15401928]
[1721305128669,0.60218733,64897.0,64896.0,0.15401928]
[1721305130880,0.002,64897.0,64896.0,0.15401928]
[1721305131106,0.002,64897.0,64896.0,0.61629628]
[1721305131316,0.002,64897.0,64896.0,1.23266628]
[1721305131982,0.4665,64913.0,64902.0,0.062]
[1721305132213,0.154891,64914.0,64910.0,0.0822]
[1721305132433,0.154891,64914.0,64911.0,0.1442]
[1721305132434,0.154053,64913.0,64911.0,0.1442]
[1721305132649,0.00084,64914.0,64911.0,0.1442]
[1721305132650,0.00084,64914.0,64913.0,0.154052]
[1721305132870,0.00084,64914.0,64913.0,0.297552]
[1721305133078,0.00084,64914.0,64913.0,0.15357875]
[1721305133526,0.01484,64914.0,64913.0,0.15357875]
[1721305135516,0.00084,64914.0,64913.0,0.15357875]
[1721305135748,0.00684,64914.0,64913.0,0.15357875]
[1721305135960,0.00684,64914.0,64913.0,0.30763075]
[1721305136207,0.00684,64914.0,64913.0,0.92691972]
[1721305136444,0.00684,64914.0,64913.0,1.23502372]
[1721305136445,0.00784,64914.0,64913.0,1.23502372]
[1721305136639,0.00784,64914.0,64913.0,1.23194275]
[1721305136853,0.00684,64914.0,64913.0,1.23194275]
[1721305137333,0.00184,64914.0,64913.0,1.23194275]
[1721305137798,0.00084,64914.0,64913.0,1.33194275]
[1721305138248,0.154017,64928.0,64925.0,0.1392]
[1721305138464,0.154019,64927.0,64925.0,0.1392]
[1721305138686,0.462057,64927.0,64926.0,0.01004629]
[1721305138910,0.462064,64926.0,64925.0,0.1392]
[1721305139130,0.154021,64926.0,64925.0,0.1392]
[1721305139569,0.154021,64926.0,64925.0,0.14924767]
[1721305139790,0.462064,64926.0,64925.0,0.14924767]
[1721305140006,0.154021,64926.0,64925.0,0.1392]
[1721305140437,0.008,64927.0,64926.0,0.1473]
[1721305140890,0.008,64927.0,64926.0,0.15734629]
[1721305142698,0.004,64927.0,64926.0,0.15734629]
[1721305142932,0.012,64927.0,64926.0,0.15734629]
[1721305143964,0.012,64927.0,64926.0,0.31136729]
[1721305144619,0.012,64927.0,64926.0,0.15734629]
[1721305145091,0.83721628,64927.0,64926.0,0.15734629]
[1721305145291,0.474057,64927.0,64926.0,0.15734629]
[1721305145506,0.166019,64927.0,64926.0,0.1473]
[1721305145735,0.474057,64927.0,64926.0,0.1473]
[1721305145953,0.462078,64924.0,64923.0,0.0656]
[1721305147238,0.463078,64924.0,64923.0,0.0656]
[1721305147889,0.154043,64917.0,64913.0,0.1]
[1721305148110,0.07717479,64920.0,64904.0,0.308144]
[1721305148340,0.07717479,64920.0,64898.0,0.002794]
[1721305148341,0.308115,64911.0,64898.0,0.002794]
[1721305148583,0.154074,64904.0,64899.0,0.1404]
[1721305149059,0.154071,64905.0,64899.0,0.1404]
[1721305149740,0.308122,64910.0,64902.0,0.154076]
[1721305149960,0.154064,64908.0,64903.0,0.1379]
[1721305150169,0.001,64904.0,64903.0,0.1379]
[1721305150589,0.154069,64906.0,64903.0,0.1379]
[1721305151007,0.001,64905.0,64904.0,0.00948198]
[1721305151446,0.154071,64905.0,64904.0,0.00948198]
[1721305152300,0.462213,64905.0,64904.0,0.00948198]
[1721305152550,0.154071,64905.0,64904.0,0.00948198]
[1721305152786,0.462213,64905.0,64904.0,0.00948198]
[1721305153253,0.49249432,64905.0,64904.0,0.00948198]
[1721305153483,0.49349432,64905.0,64904.0,0.00948198]
[1721305153703,0.49449432,64905.0,64904.0,0.00948198]
[1721305154362,0.464213,64905.0,64904.0,0.00948198]
[1721305154804,0.156071,64905.0,64904.0,0.00948198]
[1721305155035,0.464213,64905.0,64904.0,0.00948198]